[Event "Early-Titled-Tuesday-Blitz-December-26-2023"]
[Site "Chess.com"]
[Date "2023.12.26"]
[Round "3"]
[White "roxannyzoldyck"]
[Black "fugadelafuga"]
[Result "0-1"]
[WhiteElo "2232"]
[BlackElo "2434"]
[TimeControl "180+1"]
[EndTime "8:24:37 PST"]
[Termination "fugadelafuga won by checkmate"]

1. e4 {[%clk 0:03:00.9]} 1... c5 {[%clk 0:02:48.7]} 2. Nf3 {[%clk 0:03:00.7]}
2... Nc6 {[%clk 0:02:48.3]} 3. d4 {[%clk 0:02:59.6]} 3... cxd4 {[%clk
0:02:49.2]} 4. Nxd4 {[%clk 0:03:00]} 4... g6 {[%clk 0:02:49.6]} 5. Nc3 {[%clk
0:02:59.8]} 5... Bg7 {[%clk 0:02:49.5]} 6. Be3 {[%clk 0:03:00.3]} 6... Nf6
{[%clk 0:02:49.8]} 7. Bc4 {[%clk 0:02:59.3]} 7... O-O {[%clk 0:02:49.9]} 8. Bb3
{[%clk 0:02:59.1]} 8... d6 {[%clk 0:02:46.2]} 9. f3 {[%clk 0:02:59.2]} 9... Bd7
{[%clk 0:02:42.9]} 10. Qd2 {[%clk 0:02:59.1]} 10... Na5 {[%clk 0:02:39.6]} 11.
O-O-O {[%clk 0:02:56.7]} 11... Nxb3+ {[%clk 0:02:39.3]} 12. cxb3 {[%clk
0:02:53.9]} 12... Qa5 {[%clk 0:02:39.3]} 13. Kb1 {[%clk 0:02:51.8]} 13... Rfc8
{[%clk 0:02:38.7]} 14. g4 {[%clk 0:02:51.9]} 14... b5 {[%clk 0:02:34.9]} 15. h4
{[%clk 0:02:46.6]} 15... b4 {[%clk 0:02:34.8]} 16. Nce2 {[%clk 0:02:44.3]} 16...
Qe5 {[%clk 0:02:23]} 17. h5 {[%clk 0:02:39.5]} 17... a5 {[%clk 0:02:08.9]} 18.
hxg6 {[%clk 0:02:38.8]} 18... hxg6 {[%clk 0:02:07.6]} 19. g5 {[%clk 0:02:22.7]}
19... Nxe4 {[%clk 0:02:04.8]} 20. fxe4 {[%clk 0:02:20.1]} 20... Qxe4+ {[%clk
0:02:05.7]} 21. Qd3 {[%clk 0:02:15.6]} 21... Qxd3+ {[%clk 0:01:52.9]} 22. Rxd3
{[%clk 0:02:16.5]} 22... e5 {[%clk 0:01:49]} 23. Ng3 {[%clk 0:02:05.6]} 23...
exd4 {[%clk 0:01:47.7]} 24. Bxd4 {[%clk 0:02:06.5]} 24... a4 {[%clk 0:01:38.9]}
25. Bxg7 {[%clk 0:02:03.8]} 25... Kxg7 {[%clk 0:01:39.8]} 26. bxa4 {[%clk
0:01:46.4]} 26... Bxa4 {[%clk 0:01:35.9]} 27. Rxd6 {[%clk 0:01:42.2]} 27... Bc2+
{[%clk 0:01:34.5]} 28. Ka1 {[%clk 0:01:27.4]} 28... Rxa2+ {[%clk 0:01:31.4]} 29.
Kxa2 {[%clk 0:01:25.9]} 29... Ra8+ {[%clk 0:01:31.1]} 30. Ra6 {[%clk 0:01:24.2]}
30... Rxa6# {[%clk 0:01:31.2]} 0-1

[Event "Early-Titled-Tuesday-Blitz-December-26-2023"]
[Site "Chess.com"]
[Date "2023.12.26"]
[Round "3"]
[White "chess_blitz00"]
[Black "YouJustFoundYourGodfather"]
[Result "0-1"]
[WhiteElo "2412"]
[BlackElo "2623"]
[TimeControl "180+1"]
[EndTime "8:24:54 PST"]
[Termination "YouJustFoundYourGodfather won on time"]

1. d4 {[%clk 0:02:56]} 1... e6 {[%clk 0:02:55.8]} 2. Nc3 {[%clk 0:02:44.5]} 2...
d5 {[%clk 0:02:52]} 3. e4 {[%clk 0:02:27.5]} 3... Bb4 {[%clk 0:02:46.6]} 4. exd5
{[%clk 0:01:03.1]} 4... exd5 {[%clk 0:02:42]} 5. Bd3 {[%clk 0:00:50.4]} 5... Nc6
{[%clk 0:02:39.4]} 6. Ne2 {[%clk 0:00:45.7]} 6... Bg4 {[%clk 0:02:37.1]} 7. f3
{[%clk 0:00:44.3]} 7... Be6 {[%clk 0:02:33.8]} 8. Be3 {[%clk 0:00:42.8]} 8...
Nge7 {[%clk 0:02:33.2]} 9. a3 {[%clk 0:00:40]} 9... Ba5 {[%clk 0:02:32.3]} 10.
O-O {[%clk 0:00:34.9]} 10... Nf5 {[%clk 0:02:24.5]} 11. Bf2 {[%clk 0:00:33.6]}
11... O-O {[%clk 0:02:22]} 12. Na4 {[%clk 0:00:25.9]} 12... Bb6 {[%clk
0:02:17.6]} 13. Nxb6 {[%clk 0:00:08.3]} 13... axb6 {[%clk 0:02:18.5]} 14. c3
{[%clk 0:00:04.5]} 14... Re8 {[%clk 0:02:17.7]} 15. Qc2 {[%clk 0:00:01.3]} 15...
h6 {[%clk 0:02:16.5]} 16. Rae1 {[%clk 0:00:01.4]} 16... Nd6 {[%clk 0:02:16.4]}
0-1

[Event "Early-Titled-Tuesday-Blitz-December-26-2023"]
[Site "Chess.com"]
[Date "2023.12.26"]
[Round "3"]
[White "Ezov"]
[Black "combidharma"]
[Result "0-1"]
[WhiteElo "2174"]
[BlackElo "2785"]
[TimeControl "180+1"]
[EndTime "8:25:01 PST"]
[Termination "combidharma won by resignation"]

1. d4 {[%clk 0:03:00.9]} 1... Nf6 {[%clk 0:02:58]} 2. Nc3 {[%clk 0:02:59.3]}
2... c5 {[%clk 0:02:54]} 3. dxc5 {[%clk 0:02:57.7]} 3... e6 {[%clk 0:02:52.4]}
4. e4 {[%clk 0:02:54.5]} 4... Bxc5 {[%clk 0:02:48.4]} 5. e5 {[%clk 0:02:48.1]}
5... Ng8 {[%clk 0:02:44.2]} 6. Nf3 {[%clk 0:02:44.1]} 6... Ne7 {[%clk
0:02:41.4]} 7. Bd3 {[%clk 0:02:40.8]} 7... d5 {[%clk 0:02:37.4]} 8. O-O {[%clk
0:02:33]} 8... Nbc6 {[%clk 0:02:31.9]} 9. Bg5 {[%clk 0:02:30.5]} 9... h6 {[%clk
0:02:28.7]} 10. Bh4 {[%clk 0:02:28.9]} 10... g5 {[%clk 0:02:28.7]} 11. Bg3
{[%clk 0:02:28.3]} 11... a6 {[%clk 0:02:24.1]} 12. a3 {[%clk 0:02:16.2]} 12...
Ba7 {[%clk 0:02:20]} 13. Ne2 {[%clk 0:02:05.6]} 13... Bd7 {[%clk 0:02:11.5]} 14.
c4 {[%clk 0:02:04.2]} 14... Qb6 {[%clk 0:01:53.5]} 15. b4 {[%clk 0:01:59.1]}
15... dxc4 {[%clk 0:01:53.4]} 16. Bxc4 {[%clk 0:01:59.1]} 16... O-O-O {[%clk
0:01:53.4]} 17. Rc1 {[%clk 0:01:47.7]} 17... Kb8 {[%clk 0:01:52.4]} 18. Qb3
{[%clk 0:01:32.6]} 18... Nf5 {[%clk 0:01:49.3]} 19. Rfd1 {[%clk 0:01:19]} 19...
Nxg3 {[%clk 0:01:46.1]} 20. Nxg3 {[%clk 0:01:12.6]} 20... Qxf2+ {[%clk
0:01:46.5]} 21. Kh1 {[%clk 0:01:10.1]} 21... Bc8 {[%clk 0:01:47.4]} 22. Rc2
{[%clk 0:01:08.3]} 22... Rxd1+ {[%clk 0:01:45.9]} 23. Bf1 {[%clk 0:00:46.2]}
23... Rxf1+ {[%clk 0:01:40.5]} 0-1

[Event "Early-Titled-Tuesday-Blitz-December-26-2023"]
[Site "Chess.com"]
[Date "2023.12.26"]
[Round "3"]
[White "DeyanKostov"]
[Black "Mikasinski"]
[Result "1-0"]
[WhiteElo "2483"]
[BlackElo "2632"]
[TimeControl "180+1"]
[EndTime "8:25:01 PST"]
[Termination "DeyanKostov won by resignation"]

1. d4 {[%clk 0:03:00.9]} 1... Nf6 {[%clk 0:02:59.8]} 2. c4 {[%clk 0:03:01.2]}
2... e6 {[%clk 0:02:59.8]} 3. Nc3 {[%clk 0:03:01.6]} 3... Bb4 {[%clk 0:03:00]}
4. e3 {[%clk 0:03:02.2]} 4... O-O {[%clk 0:02:59.8]} 5. Bd3 {[%clk 0:03:02.9]}
5... d5 {[%clk 0:02:58.1]} 6. a3 {[%clk 0:03:03.3]} 6... Bxc3+ {[%clk
0:02:52.9]} 7. bxc3 {[%clk 0:03:04.2]} 7... c5 {[%clk 0:02:53.5]} 8. cxd5 {[%clk
0:03:03.6]} 8... exd5 {[%clk 0:02:49.8]} 9. Ne2 {[%clk 0:03:02.3]} 9... Re8
{[%clk 0:02:48.3]} 10. O-O {[%clk 0:03:02.6]} 10... Nc6 {[%clk 0:02:47.9]} 11.
f3 {[%clk 0:03:02.4]} 11... Ne7 {[%clk 0:02:26.9]} 12. Ng3 {[%clk 0:02:55.7]}
12... Qc7 {[%clk 0:02:23.1]} 13. Bd2 {[%clk 0:02:53.9]} 13... Bd7 {[%clk
0:02:21.1]} 14. Rc1 {[%clk 0:02:48.6]} 14... b6 {[%clk 0:02:21.2]} 15. e4 {[%clk
0:02:43]} 15... dxe4 {[%clk 0:02:18.6]} 16. fxe4 {[%clk 0:02:43.9]} 16... Bg4
{[%clk 0:02:17.6]} 17. Qc2 {[%clk 0:02:34.7]} 17... c4 {[%clk 0:02:17.3]} 18.
Be2 {[%clk 0:02:34.3]} 18... Bxe2 {[%clk 0:02:17.8]} 19. Nxe2 {[%clk 0:02:35.2]}
19... Ng6 {[%clk 0:02:15.7]} 20. Ng3 {[%clk 0:02:33.8]} 20... Qc6 {[%clk
0:02:11]} 21. Rce1 {[%clk 0:02:32.9]} 21... Rad8 {[%clk 0:02:10]} 22. Bg5 {[%clk
0:02:31.6]} 22... Rd7 {[%clk 0:02:00.3]} 23. Bxf6 {[%clk 0:02:30.7]} 23... gxf6
{[%clk 0:02:00.9]} 24. Nh5 {[%clk 0:02:16.7]} 24... Rd6 {[%clk 0:01:56]} 25. Kh1
{[%clk 0:02:09.2]} 25... Kf8 {[%clk 0:01:48.1]} 26. d5 {[%clk 0:02:06.8]} 26...
Qc5 {[%clk 0:01:43.3]} 27. Nxf6 {[%clk 0:02:06.9]} 27... Re5 {[%clk 0:01:42]}
28. Ng4 {[%clk 0:02:01.4]} 28... Rg5 {[%clk 0:01:41.2]} 29. h3 {[%clk
0:01:55.3]} 29... Qc8 {[%clk 0:01:36.7]} 30. Qe2 {[%clk 0:01:43.3]} 30... Kg7
{[%clk 0:01:34.6]} 31. Qf3 {[%clk 0:01:39.5]} 31... Qe8 {[%clk 0:01:20.5]} 32.
e5 {[%clk 0:01:30.9]} 32... Rd8 {[%clk 0:01:12.3]} 33. Qf6+ {[%clk 0:01:30.3]}
1-0

[Event "Early-Titled-Tuesday-Blitz-December-26-2023"]
[Site "Chess.com"]
[Date "2023.12.26"]
[Round "3"]
[White "Kiborg95"]
[Black "Sanyura"]
[Result "1-0"]
[WhiteElo "2815"]
[BlackElo "2628"]
[TimeControl "180+1"]
[EndTime "8:25:13 PST"]
[Termination "Kiborg95 won by resignation"]

1. e4 {[%clk 0:03:00.9]} 1... c5 {[%clk 0:02:59.4]} 2. Nc3 {[%clk 0:02:57.5]}
2... Nc6 {[%clk 0:02:59.1]} 3. Nge2 {[%clk 0:02:57.6]} 3... g6 {[%clk
0:02:57.9]} 4. d4 {[%clk 0:02:57.7]} 4... cxd4 {[%clk 0:02:58.2]} 5. Nxd4 {[%clk
0:02:58.6]} 5... Bg7 {[%clk 0:02:58.5]} 6. Be3 {[%clk 0:02:59.4]} 6... Nf6
{[%clk 0:02:58.3]} 7. Bc4 {[%clk 0:03:00.1]} 7... O-O {[%clk 0:02:58.1]} 8. Bb3
{[%clk 0:03:00.1]} 8... a5 {[%clk 0:02:56.8]} 9. f3 {[%clk 0:02:59.8]} 9... d5
{[%clk 0:02:44.5]} 10. Bxd5 {[%clk 0:02:58.8]} 10... Nxd5 {[%clk 0:02:41.7]} 11.
Nxd5 {[%clk 0:02:59.7]} 11... Nb4 {[%clk 0:01:40.5]} 12. Nxb4 {[%clk 0:02:49.1]}
12... axb4 {[%clk 0:01:37.4]} 13. O-O {[%clk 0:02:42.2]} 13... Qb6 {[%clk
0:01:24.5]} 14. Nf5 {[%clk 0:02:37.1]} 14... Qb5 {[%clk 0:01:09.5]} 15. Nxe7+
{[%clk 0:02:12.5]} 15... Kh8 {[%clk 0:01:06.2]} 16. Bd4 {[%clk 0:02:12.6]} 16...
Be6 {[%clk 0:01:01.9]} 17. Bxg7+ {[%clk 0:02:03.4]} 17... Kxg7 {[%clk
0:01:01.9]} 18. Qd4+ {[%clk 0:02:04.1]} 18... f6 {[%clk 0:01:02.4]} 19. Nd5
{[%clk 0:02:04.7]} 19... Rac8 {[%clk 0:00:57]} 20. Qxb4 {[%clk 0:01:55.4]} 20...
Qc5+ {[%clk 0:00:38.3]} 21. Qxc5 {[%clk 0:01:53.6]} 21... Rxc5 {[%clk
0:00:39.2]} 22. Ne3 {[%clk 0:01:52.8]} 22... Ra8 {[%clk 0:00:36.7]} 23. a3
{[%clk 0:01:52.7]} 23... f5 {[%clk 0:00:32]} 24. exf5 {[%clk 0:01:49]} 24...
gxf5 {[%clk 0:00:32.9]} 25. c3 {[%clk 0:01:48.1]} 25... f4 {[%clk 0:00:32.2]}
26. Nc2 {[%clk 0:01:47.6]} 26... Rb5 {[%clk 0:00:28.1]} 27. Nd4 {[%clk
0:01:47.4]} 1-0

[Event "Early-Titled-Tuesday-Blitz-December-26-2023"]
[Site "Chess.com"]
[Date "2023.12.26"]
[Round "3"]
[White "Suleyman_Chess06"]
[Black "arturdailima"]
[Result "1-0"]
[WhiteElo "2594"]
[BlackElo "2320"]
[TimeControl "180+1"]
[EndTime "8:25:13 PST"]
[Termination "Suleyman_Chess06 won by resignation"]

1. d4 {[%clk 0:03:00.9]} 1... Nf6 {[%clk 0:02:57.9]} 2. Nf3 {[%clk 0:03:00.6]}
2... g6 {[%clk 0:02:58.2]} 3. g3 {[%clk 0:03:01.1]} 3... Bg7 {[%clk 0:02:58.1]}
4. Bg2 {[%clk 0:03:02]} 4... O-O {[%clk 0:02:56.4]} 5. O-O {[%clk 0:03:02.9]}
5... d6 {[%clk 0:02:55.7]} 6. c4 {[%clk 0:03:03.8]} 6... c6 {[%clk 0:02:56.1]}
7. Nc3 {[%clk 0:03:04.4]} 7... Bf5 {[%clk 0:02:56.5]} 8. Nh4 {[%clk 0:03:03.5]}
8... Be6 {[%clk 0:02:53.9]} 9. b3 {[%clk 0:03:01.6]} 9... d5 {[%clk 0:02:52.8]}
10. cxd5 {[%clk 0:02:58.5]} 10... cxd5 {[%clk 0:02:51.1]} 11. Nf3 {[%clk
0:02:58.1]} 11... Nc6 {[%clk 0:02:50.8]} 12. Bf4 {[%clk 0:02:57.8]} 12... Ne4
{[%clk 0:02:48.2]} 13. Rc1 {[%clk 0:02:56.7]} 13... Nxc3 {[%clk 0:02:45.5]} 14.
Rxc3 {[%clk 0:02:56.6]} 14... Qa5 {[%clk 0:02:46.2]} 15. Qd2 {[%clk 0:02:55.9]}
15... Qb6 {[%clk 0:02:30.1]} 16. Be3 {[%clk 0:02:46]} 16... f6 {[%clk
0:02:25.3]} 17. Rfc1 {[%clk 0:02:45.9]} 17... Rac8 {[%clk 0:02:25.2]} 18. Ne1
{[%clk 0:02:41.6]} 18... f5 {[%clk 0:01:57.5]} 19. Nf3 {[%clk 0:02:38.5]} 19...
Bf7 {[%clk 0:01:40.6]} 20. Ng5 {[%clk 0:02:33.8]} 20... e6 {[%clk 0:01:38.4]}
21. Nf3 {[%clk 0:02:32.6]} 21... Ne7 {[%clk 0:01:34.3]} 22. Ne5 {[%clk 0:02:28]}
22... Nc6 {[%clk 0:01:24.7]} 23. Nd7 {[%clk 0:02:26.4]} 23... Qa5 {[%clk
0:01:21.9]} 24. Nxf8 {[%clk 0:02:25.5]} 24... Rxf8 {[%clk 0:01:22.8]} 25. h4
{[%clk 0:02:19.5]} 25... Qb4 {[%clk 0:01:19.5]} 26. Rd3 {[%clk 0:02:10.7]} 26...
Qb5 {[%clk 0:01:18.9]} 27. h5 {[%clk 0:02:09.2]} 27... a5 {[%clk 0:01:16.9]} 28.
h6 {[%clk 0:02:08.9]} 28... Bf6 {[%clk 0:01:16.5]} 29. Bg5 {[%clk 0:02:08]}
29... Bh8 {[%clk 0:01:14.9]} 30. e3 {[%clk 0:02:05.6]} 30... Ra8 {[%clk
0:01:14.5]} 31. Rdc3 {[%clk 0:02:05.1]} 31... Qb6 {[%clk 0:01:08.4]} 32. Bf1
{[%clk 0:02:04.1]} 32... Ra7 {[%clk 0:01:06.6]} 33. Rc5 {[%clk 0:02:01.6]} 33...
Ra8 {[%clk 0:01:06.4]} 34. Bb5 {[%clk 0:02:00.9]} 34... Na7 {[%clk 0:01:04.1]}
35. Ba4 {[%clk 0:01:59.2]} 35... Nc6 {[%clk 0:00:55.2]} 36. Bxc6 {[%clk
0:01:58.7]} 36... bxc6 {[%clk 0:00:55.8]} 37. Rxc6 {[%clk 0:01:59.6]} 37... Qb5
{[%clk 0:00:56.3]} 38. Rc8+ {[%clk 0:01:59.2]} 38... Rxc8 {[%clk 0:00:55]} 39.
Rxc8+ {[%clk 0:02:00.1]} 39... Be8 {[%clk 0:00:55.7]} 40. Qc2 {[%clk 0:01:59.9]}
40... Kf7 {[%clk 0:00:54]} 41. Qc7+ {[%clk 0:01:59.8]} 41... Qd7 {[%clk
0:00:51.3]} 42. Qxd7+ {[%clk 0:01:59.5]} 42... Bxd7 {[%clk 0:00:51.5]} 43. Rxh8
{[%clk 0:02:00.4]} 1-0

[Event "Early-Titled-Tuesday-Blitz-December-26-2023"]
[Site "Chess.com"]
[Date "2023.12.26"]
[Round "3"]
[White "AlexPapasimakopoulos"]
[Black "Pumpkin_in_moonlight"]
[Result "1-0"]
[WhiteElo "2628"]
[BlackElo "2301"]
[TimeControl "180+1"]
[EndTime "8:25:20 PST"]
[Termination "AlexPapasimakopoulos won by resignation"]

1. e4 {[%clk 0:02:56.6]} 1... c5 {[%clk 0:02:58.5]} 2. b4 {[%clk 0:02:56.1]}
2... e6 {[%clk 0:02:34.5]} 3. bxc5 {[%clk 0:02:54.7]} 3... Bxc5 {[%clk
0:02:34.5]} 4. d4 {[%clk 0:02:55.4]} 4... Bb4+ {[%clk 0:02:28.5]} 5. c3 {[%clk
0:02:56.3]} 5... Be7 {[%clk 0:02:27.9]} 6. Bd3 {[%clk 0:02:54.3]} 6... Nf6
{[%clk 0:02:24.4]} 7. Nd2 {[%clk 0:02:49.1]} 7... d5 {[%clk 0:02:21.3]} 8. e5
{[%clk 0:02:49.1]} 8... Nfd7 {[%clk 0:02:20.5]} 9. Ngf3 {[%clk 0:02:49.3]} 9...
Nc6 {[%clk 0:02:20]} 10. h4 {[%clk 0:02:47.6]} 10... Qc7 {[%clk 0:02:02]} 11.
Nf1 {[%clk 0:02:45.7]} 11... b6 {[%clk 0:01:52]} 12. Bd2 {[%clk 0:02:44.7]}
12... Ndb8 {[%clk 0:01:32.6]} 13. Qe2 {[%clk 0:02:37.6]} 13... a5 {[%clk
0:01:31]} 14. a4 {[%clk 0:02:33.7]} 14... Ba6 {[%clk 0:01:30.2]} 15. Bb5 {[%clk
0:02:33.1]} 15... Bxb5 {[%clk 0:01:23.3]} 16. axb5 {[%clk 0:02:27.4]} 16... Nd8
{[%clk 0:01:04.8]} 17. Ng3 {[%clk 0:02:27]} 17... a4 {[%clk 0:00:58.2]} 18. Nh5
{[%clk 0:02:26.7]} 18... Kf8 {[%clk 0:00:45.1]} 19. Rh3 {[%clk 0:02:23.1]} 19...
a3 {[%clk 0:00:42.7]} 20. Nxg7 {[%clk 0:02:14.4]} 20... Kxg7 {[%clk 0:00:34]}
21. Bh6+ {[%clk 0:02:11.4]} 21... Kg6 {[%clk 0:00:33.4]} 22. Rg3+ {[%clk
0:02:06.2]} 22... Kxh6 {[%clk 0:00:32.3]} 23. Qe3+ {[%clk 0:02:04.6]} 23... Kh5
{[%clk 0:00:31.4]} 24. Rg5+ {[%clk 0:02:04.2]} 24... Kh6 {[%clk 0:00:28.9]} 25.
g4 {[%clk 0:02:02.3]} 25... Ra4 {[%clk 0:00:07.7]} 26. Rg8+ {[%clk 0:02:00]} 1-0

[Event "Early-Titled-Tuesday-Blitz-December-26-2023"]
[Site "Chess.com"]
[Date "2023.12.26"]
[Round "3"]
[White "sergoy"]
[Black "Legendinunknown"]
[Result "1-0"]
[WhiteElo "2944"]
[BlackElo "2706"]
[TimeControl "180+1"]
[EndTime "8:25:26 PST"]
[Termination "sergoy won by resignation"]

1. d4 {[%clk 0:03:00.9]} 1... Nf6 {[%clk 0:02:59.8]} 2. c4 {[%clk 0:03:01.5]}
2... e6 {[%clk 0:03:00.1]} 3. Nf3 {[%clk 0:03:02.3]} 3... b6 {[%clk 0:02:59.2]}
4. g3 {[%clk 0:03:02.2]} 4... Ba6 {[%clk 0:02:59.2]} 5. Qc2 {[%clk 0:03:02.4]}
5... c5 {[%clk 0:02:58.4]} 6. d5 {[%clk 0:03:02.7]} 6... exd5 {[%clk 0:02:56.8]}
7. cxd5 {[%clk 0:03:03.6]} 7... Bb7 {[%clk 0:02:52.3]} 8. Bg2 {[%clk 0:03:03]}
8... Nxd5 {[%clk 0:02:49.7]} 9. O-O {[%clk 0:03:02.7]} 9... Nc6 {[%clk
0:02:49.4]} 10. Rd1 {[%clk 0:03:01.3]} 10... Be7 {[%clk 0:02:48.9]} 11. Qf5
{[%clk 0:02:59.5]} 11... Nf6 {[%clk 0:02:46.7]} 12. Nc3 {[%clk 0:02:59.7]} 12...
O-O {[%clk 0:02:44.9]} 13. e4 {[%clk 0:02:59.8]} 13... d6 {[%clk 0:02:40]} 14.
e5 {[%clk 0:02:53.2]} 14... Ne8 {[%clk 0:02:38.8]} 15. Bf4 {[%clk 0:02:24.6]}
15... g6 {[%clk 0:01:49.7]} 16. Qh3 {[%clk 0:02:05.8]} 16... Bc8 {[%clk
0:01:38.2]} 17. Qh6 {[%clk 0:01:54.7]} 17... Ng7 {[%clk 0:01:19]} 18. Ng5 {[%clk
0:01:35.6]} 18... Bxg5 {[%clk 0:01:16.9]} 19. Bxg5 {[%clk 0:01:36.5]} 19... Qe8
{[%clk 0:01:05]} 20. Nd5 {[%clk 0:01:36.9]} 20... f5 {[%clk 0:00:46]} 21. Nf6+
{[%clk 0:01:26.5]} 21... Rxf6 {[%clk 0:00:44.1]} 22. Bxf6 {[%clk 0:01:27.4]}
22... Nh5 {[%clk 0:00:34.5]} 23. Rxd6 {[%clk 0:01:27.1]} 23... Bb7 {[%clk
0:00:34.7]} 24. Bd5+ {[%clk 0:01:26.9]} 1-0

[Event "Early-Titled-Tuesday-Blitz-December-26-2023"]
[Site "Chess.com"]
[Date "2023.12.26"]
[Round "3"]
[White "chenrip"]
[Black "Devil_Sun"]
[Result "0-1"]
[WhiteElo "2353"]
[BlackElo "2598"]
[TimeControl "180+1"]
[EndTime "8:25:33 PST"]
[Termination "Devil_Sun won by resignation"]

1. e4 {[%clk 0:03:00.9]} 1... e6 {[%clk 0:03:00]} 2. d4 {[%clk 0:03:00.5]} 2...
d5 {[%clk 0:03:00.9]} 3. Nc3 {[%clk 0:03:00.5]} 3... Nf6 {[%clk 0:03:00.1]} 4.
Bg5 {[%clk 0:02:58.8]} 4... dxe4 {[%clk 0:02:58.8]} 5. Nxe4 {[%clk 0:02:57.8]}
5... Be7 {[%clk 0:02:59.7]} 6. Ng3 {[%clk 0:02:54.4]} 6... b6 {[%clk 0:02:57.9]}
7. Be2 {[%clk 0:02:53.9]} 7... Bb7 {[%clk 0:02:58.1]} 8. Bf3 {[%clk 0:02:54.4]}
8... c6 {[%clk 0:02:57.9]} 9. N1e2 {[%clk 0:02:53]} 9... Nbd7 {[%clk 0:02:58.5]}
10. O-O {[%clk 0:02:52.6]} 10... Qc7 {[%clk 0:02:59.2]} 11. c4 {[%clk
0:02:47.6]} 11... h6 {[%clk 0:02:58.5]} 12. Bf4 {[%clk 0:02:46.7]} 12... Bd6
{[%clk 0:02:59.1]} 13. Bxd6 {[%clk 0:02:44.9]} 13... Qxd6 {[%clk 0:03:00]} 14.
Qb3 {[%clk 0:02:41.8]} 14... O-O-O {[%clk 0:02:56.9]} 15. a4 {[%clk 0:02:38.9]}
15... a5 {[%clk 0:02:52.1]} 16. c5 {[%clk 0:02:17.5]} 16... bxc5 {[%clk
0:02:51.6]} 17. Qc3 {[%clk 0:02:17.5]} 17... cxd4 {[%clk 0:02:46.2]} 18. Qxa5
{[%clk 0:02:16.6]} 18... Qc5 {[%clk 0:02:45.1]} 19. Qd2 {[%clk 0:02:13.4]} 19...
Ne5 {[%clk 0:02:42.3]} 20. Rfc1 {[%clk 0:02:07.4]} 20... Nxf3+ {[%clk
0:02:42.5]} 21. gxf3 {[%clk 0:02:07.2]} 21... Qd5 {[%clk 0:02:43.4]} 22. a5
{[%clk 0:02:04.4]} 22... Qxf3 {[%clk 0:02:39.8]} 23. a6 {[%clk 0:02:02.8]} 23...
Ba8 {[%clk 0:02:40.4]} 24. a7 {[%clk 0:01:42.9]} 24... c5 {[%clk 0:02:34.3]} 25.
Rxc5+ {[%clk 0:01:41.5]} 25... Kd7 {[%clk 0:02:35]} 26. Kf1 {[%clk 0:01:00.6]}
26... Ke8 {[%clk 0:02:26.1]} 27. Nxd4 {[%clk 0:00:41.6]} 27... Qg2+ {[%clk
0:02:25.8]} 28. Ke2 {[%clk 0:00:41.3]} 28... Ne4 {[%clk 0:02:26.4]} 29. Qe3
{[%clk 0:00:33.7]} 29... Nxc5 {[%clk 0:02:25.8]} 30. Rc1 {[%clk 0:00:26.7]}
30... Qd5 {[%clk 0:02:20.7]} 31. Nb5 {[%clk 0:00:19.8]} 31... Qd3+ {[%clk
0:02:15.8]} 32. Qxd3 {[%clk 0:00:20]} 32... Nxd3 {[%clk 0:02:16.7]} 33. Rc7
{[%clk 0:00:20.1]} 33... Nf4+ {[%clk 0:02:15.9]} 34. Ke3 {[%clk 0:00:19.8]}
34... Nd5+ {[%clk 0:02:16.8]} 0-1

[Event "Early-Titled-Tuesday-Blitz-December-26-2023"]
[Site "Chess.com"]
[Date "2023.12.26"]
[Round "3"]
[White "Navyblue1"]
[Black "Flawless_Fighter"]
[Result "0-1"]
[WhiteElo "2160"]
[BlackElo "2797"]
[TimeControl "180+1"]
[EndTime "8:25:39 PST"]
[Termination "Flawless_Fighter won by resignation"]

1. d4 {[%clk 0:03:00.9]} 1... Nf6 {[%clk 0:02:59.9]} 2. c4 {[%clk 0:02:59.3]}
2... e6 {[%clk 0:03:00.2]} 3. Nf3 {[%clk 0:02:57.3]} 3... d5 {[%clk 0:03:01.1]}
4. Nc3 {[%clk 0:02:56.6]} 4... c5 {[%clk 0:03:01.6]} 5. cxd5 {[%clk 0:02:54.3]}
5... Nxd5 {[%clk 0:03:02.5]} 6. Nxd5 {[%clk 0:02:50.2]} 6... Qxd5 {[%clk
0:03:01.7]} 7. e3 {[%clk 0:02:43.3]} 7... Nc6 {[%clk 0:03:01.3]} 8. Bb5 {[%clk
0:02:34.3]} 8... cxd4 {[%clk 0:02:53.4]} 9. Bxc6+ {[%clk 0:02:19]} 9... Qxc6
{[%clk 0:02:53.1]} 10. Nxd4 {[%clk 0:02:18.9]} 10... Qxg2 {[%clk 0:02:51.6]} 11.
Qf3 {[%clk 0:02:11]} 11... Qxf3 {[%clk 0:02:51.4]} 12. Nxf3 {[%clk 0:02:11]}
12... b6 {[%clk 0:02:49.9]} 13. Nd4 {[%clk 0:02:06.5]} 13... Bb7 {[%clk
0:02:40.5]} 14. O-O {[%clk 0:02:05.4]} 14... Rc8 {[%clk 0:02:38.9]} 15. Bd2
{[%clk 0:02:03.3]} 15... Rc5 {[%clk 0:02:26.3]} 16. f3 {[%clk 0:01:58.2]} 16...
Be7 {[%clk 0:02:23.9]} 17. Bc3 {[%clk 0:01:52.2]} 17... O-O {[%clk 0:02:19.1]}
18. Ne2 {[%clk 0:01:44.9]} 18... Rd8 {[%clk 0:02:14.7]} 19. Ng3 {[%clk
0:01:37.3]} 19... Rcd5 {[%clk 0:02:04.4]} 20. Kf2 {[%clk 0:01:35.5]} 20... f6
{[%clk 0:02:04.6]} 21. Rfe1 {[%clk 0:01:24.1]} 21... Kf7 {[%clk 0:02:02.6]} 22.
Ne4 {[%clk 0:01:16]} 22... h6 {[%clk 0:01:59.3]} 23. Rg1 {[%clk 0:00:36.3]}
23... Rh5 {[%clk 0:01:55.7]} 24. Rg2 {[%clk 0:00:29]} 24... Bxe4 {[%clk
0:01:50.8]} 25. fxe4 {[%clk 0:00:28.9]} 25... Rh3 {[%clk 0:01:46.2]} 26. Rag1
{[%clk 0:00:27.2]} 26... g5 {[%clk 0:01:44.3]} 27. Ke2 {[%clk 0:00:25.2]} 27...
Bc5 {[%clk 0:01:41.7]} 28. Bd2 {[%clk 0:00:21.9]} 28... Rxd2+ {[%clk 0:01:40.4]}
29. Kxd2 {[%clk 0:00:21.2]} 29... Bxe3+ {[%clk 0:01:41.1]} 30. Ke2 {[%clk
0:00:21.8]} 30... Bxg1 {[%clk 0:01:41.6]} 31. Rxg1 {[%clk 0:00:22.5]} 31...
Rxh2+ {[%clk 0:01:42.1]} 32. Kd3 {[%clk 0:00:22.7]} 32... Rxb2 {[%clk 0:01:43]}
33. Rf1 {[%clk 0:00:22.9]} 33... Rxa2 {[%clk 0:01:42.6]} 0-1